Cogmind - Beta 13 X2 @@@ ROGUE MODE // 2023.12.23 @ 13:56:44 Player: f3-rnm Result: Destroyed by 31-SUO(R) with Subdweller Beam Cannon Performance ------------- Evolutions (0) 0 Regions Visited (2) 400 Robots Destroyed (10) 50 Value Destroyed (324) 324 Prototype IDs (0) 0 Alien Tech Used (0) 0 Bonus (0) 0 TOTAL SCORE: 774 Bonus ------- None Cogmind --------- Core Integrity 0/250 Matter 272/300 Energy 88/100 System Corruption 2% Temperature Hot (207) Movement Treading (160) Location -10/Subcaves Parts ------- > --- POWER (1) -------- (None) > --- PROPULSION (2) --- Light Treads Light Treads > --- UTILITY (2) ------ Targeting Computer Light Armor Plating > --- WEAPON (2) ------- Light Assault Rifle Subdweller Machine Gun > --- INVENTORY (5) ---- Light Treads Large Matter Pod (150) Particle Gun Grenade Launcher Peak State ------------ > --- POWER ------------ Ion Engine > --- PROPULSION ------- Light Treads Light Treads > --- UTILITY ---------- Medium Storage Unit Targeting Computer > --- WEAPON ----------- Particle Gun Light Assault Rifle > --- INVENTORY -------- Ion Engine Light Treads Light Treads Light Treads Light Treads Light Treads Huge Storage Unit Large Matter Pod Light Armor Plating Grenade Launcher [Rating: 9] Favorites ----------- Power Ion Engine Engine Ion Engine Propulsion Light Treads Treads Light Treads Utility Targeting Computer Storage Medium Storage Unit Processor Targeting Computer Protection Light Armor Plating Weapon Light Assault Rifle Energy Gun Particle Gun Ballistic Gun Light Assault Rifle Build | -11 -10 -10 ------- Run | Yrd Mat Sub Slots Evolved . | . . . Power . | . . . Propulsion . | . . . Utility . | . . . Weapon . | . . . Parts Attached 16 | 6 4 6 Power 2 | 1 . 1 Engine 2 | 1 . 1 Core . | . . . Reactor . | . . . Propulsion 6 | 2 2 2 Treads 6 | 2 2 2 Leg . | . . . Wheel . | . . . Hover . | . . . Flight . | . . . Utility 4 | 1 2 1 Device . | . . . Storage 2 | 1 1 . Processor 1 | . 1 . Hackware . | . . . Protection 1 | . . 1 Artifact . | . . . Weapon 4 | 2 . 2 Energy Gun 1 | . . 1 Energy Cannon . | . . . Ballistic Gun 3 | 2 . 1 Ballistic Cannon . | . . . Launcher . | . . . Special Weapon . | . . . Impact Weapon . | . . . Slashing Weapon . | . . . Piercing Weapon . | . . . Special Melee Weapon . | . . . Unidentified Prototypes . | . . . Parts Lost 3 | . . 3 Power 1 | . . 1 Propulsion 1 | . . 1 Utility . | . . . Weapon 1 | . . 1 Highest Loss Streak 2 | . . 2 To Critical Strikes . | . . . Average Slot Usage (%) 97 | . 96 99 Engine 14 | . 14 14 Treads 28 | . 28 28 Storage 9 | . 14 2 Processor 12 | . 10 14 Protection 4 | . . 11 Energy Gun 5 | . . 12 Ballistic Gun 22 | . 28 15 Naked Turns . | . . . Heaviest Build 19 | 13 18 19 Greatest Support 40 | 40 40 40 Greatest Overweight (x) . | . . . Average Overweight (x) . | . . . Largest Inventory Capacity 10 | 8 10 10 Average Capacity 7 | 6 8 5 Most Carried 10 | 4 10 10 Average Carried 7 | 1 8 5 Final Capacity 10 | 8 10 5 Final Carried 10 | 2 10 4 Class Distribution -------------------- 100% | Mutant Dominant Class ---------------- Mutant | -10/Materials Mutant | -10/Subcaves Resources | -11 -10 -10 ----------- Run | Yrd Mat Sub Matter Collected 630 | 124 336 170 Remotely . | . . . Salvage Created 605 | . 283 322 Parts 34 | . 14 20 Haulers Intercepted 1 | . 1 . Recyclers Shooed . | . . . Parts Field Recycled . | . . . Retrieved Matter . | . . . Parts Self-Destructed 8 | . . 8 Prevented . | . . . Kills | -11 -10 -10 ------- Run | Yrd Mat Sub Combat Hostiles Destroyed 8 | . 4 4 Guns 8 | . 4 4 Classes Destroyed 4 | . 3 1 Hauler 1 | . 1 . Recycler 1 | . 1 . Grunt 5 | . 4 1 Subdweller 3 | . . 3 Best Kill Streak 2 | . 2 2 Combat Bots Only 2 | . 2 2 Max Kills in Single Turn 1 | . 1 1 Gunslinging . | . . . Exploded . | . . . Melee . | . . . Uniques/NPCs Destroyed . | . . . Combat | -11 -10 -10 -------- Run | Yrd Mat Sub Hostile Shots Fired 62 | . 25 37 Missed 12 | . 5 7 Damage Taken 936 | . 272 664 Core 272 | . 32 240 Absorbed by Shields . | . . . Core Remaining (%) 100 | 100 . . Volleys Fired 56 | 1 25 30 Largest 2 | 2 2 2 Hottest 85 | 40 40 85 Shots Fired 111 | 2 50 59 Gun 111 | 2 50 59 Cannon . | . . . Launcher . | . . . Special . | . . . Kinetic 88 | 2 50 36 Thermal 23 | . . 23 Explosive . | . . . Electromagnetic . | . . . Robot Hit Streak 14 | . 8 14 Robot Miss Streak 3 | . 3 1 Penetration Max . | . . . Secondary Targets . | . . . Shots Hit Robots 78 | . 31 47 Core Hits 32 | . 12 20 Critical Kills . | . . . Critical Parts Destroyed . | . . . Critical Strikes 1 | . . 1 Burn 1 | . . 1 Melee Attacks . | . . . Impact . | . . . Slashing . | . . . Piercing . | . . . Sneak Attacks . | . . . Combat Hostiles . | . . . Follow-up Attacks . | . . . Damage Inflicted 950 | 14 377 559 Guns 950 | 14 377 559 Cannons . | . . . Explosions . | . . . Melee . | . . . Ramming . | . . . Kinetic 648 | 14 377 257 Thermal 302 | . . 302 Explosive . | . . . Electromagnetic . | . . . Impact . | . . . Slashing . | . . . Piercing . | . . . Highest Corruption 2 | . 2 2 Average Corruption 2 | . 2 2 Corruption Purged . | . . . Corruption Blocked . | . . . Effects 10 | . 4 6 Message Errors 1 | . . 1 Matter Fused 2 | . . 2 Heat Flow Errors 1 | . . 1 Energy Discharges 1 | . 1 . Parts Fused 1 | . 1 . Data Loss (minor) 4 | . 2 2 Overload Shots . | . . . Overflow Damage . | . . . Projectiles . | . . . Explosions . | . . . Melee . | . . . Knockbacks . | . . . Impact . | . . . Kinetic . | . . . Secondary . | . . . Self-Inflicted Damage . | . . . Shots . | . . . Rammed . | . . . Targets Rammed . | . . . Kicked . | . . . Crushed . | . . . Highest Temperature 298 | . 41 298 Average Temperature 32 | . 16 42 Received Heat Transfer 714 | . 192 522 Siege Activations . | . . . Robots Corrupted . | . . . Combat Hostiles . | . . . Parts Fried . | . . . Impact Corruptions . | . . . Robots Melted . | . . . Combat Hostiles . | . . . Parts Melted 1 | . . 1 Heat Transferred 814 | . . 814 Parts Sabotaged . | . . . Parts Stolen . | . . . Parts Stripped . | . . . Power Chain Reactions . | . . . Missiles Intercepted . | . . . Alert | -11 -10 -10 ------- Run | Yrd Mat Sub Peak Influence 126 | . 126 . Initial . | . . . Average 29 | . 31 . Maximum Alert Level . | . . . Low Security (%) 100 | 100 100 . Level 1 . | . . . Level 2 . | . . . Level 3 . | . . . Level 4 . | . . . Level 5 . | . . . High Security . | . . . Max Security . | . . . Squads Dispatched . | . . . Investigation . | . . . Extermination . | . . . Reinforcement . | . . . Assault . | . . . Garrison . | . . . Intercept . | . . . Searches Triggered . | . . . Construction Impeded . | . . . Haulers Reinforced . | . . . Active Scanning Responses . | . . . Cargo Convoy Interrupts . | . . . Stealth | -11 -10 -10 --------- Run | Yrd Mat Sub Distress Signals . | . . . Communications Jammed . | . . . Distress Signals . | . . . Times Spotted 17 | . 11 6 Peak Tracking Total 4 | . 4 2 Tactical Retreats 1 | . . 1 Traps | -11 -10 -10 ------- Run | Yrd Mat Sub Traps Triggered 1 | . 1 . Indirectly . | . . . Trap Hack Attempts . | . . . Triggered . | . . . Disarmed . | . . . Reprogrammed . | . . . Reused . | . . . Traps Extracted . | . . . Installed . | . . . Triggered . | . . . Machines | -11 -10 -10 ---------- Run | Yrd Mat Sub Machines Disabled . | . . . Max in Single Turn . | . . . Machines Repaired . | . . . Machines Dismantled . | . . . Machines Sabotaged . | . . . Overloaded Fab Kills . | . . . Hacking | -11 -10 -10 --------- Run | Yrd Mat Sub Machines Accessed 2 | . 1 1 Terminals 1 | . 1 . Fabricators . | . . . Repair Stations . | . . . Recycling Units . | . . . Scanalyzers . | . . . Garrison Access . | . . . Total Hacks 5 | . 2 3 Successful 4 | . 1 3 Failed 1 | . 1 . Catastrophic . | . . . Database Lockouts . | . . . Manual 2 | . 2 . Terminals 2 | . 2 . Fabricators . | . . . Repair Stations . | . . . Recycling Units . | . . . Scanalyzers . | . . . Garrison Access . | . . . Terminal Hacks 4 | . 1 3 Record 3 | . . 3 Robot Analysis 1 | . 1 . Fabricator Hacks . | . . . Repair Station Hacks . | . . . Recycling Unit Hacks . | . . . Scanalyzer . | . . . Garrison Access Hacks . | . . . Unauthorized Hacks . | . . . Terminals . | . . . Fabricators . | . . . Repair Stations . | . . . Recycling Units . | . . . Scanalyzers . | . . . Garrison Access . | . . . Data Cores Recovered . | . . . Used . | . . . Hacking Detections 1 | . 1 . Full Trace Events . | . . . Feedback Events . | . . . Feedback Blocked . | . . . Robot Schematics Acquired . | . . . Robots Built . | . . . Authchips . | . . . Time . | . . . Total Robot Build Rating . | . . . Part Schematics Acquired . | . . . Parts Built . | . . . Authchips . | . . . Time . | . . . Total Part Build Rating . | . . . Parts Repaired . | . . . Time . | . . . Parts Recycled . | . . . Recycled Matter . | . . . Retrieved Matter . | . . . Retrieved Components . | . . . Parts Scanalyzed . | . . . Part Schematics Acquired . | . . . Parts Damaged . | . . . Bothacking | -11 -10 -10 ------------ Run | Yrd Mat Sub Used RIF Installer . | . . . Robots Hacked . | . . . Non-combat . | . . . Combat . | . . . Robot Hacks Applied . | . . . Relay Couplers Released . | . . . Fabnet Peak Effective % . | . . . Robots Rewired . | . . . Allies Hacked . | . . . Hacks Repelled . | . . . Allies | -11 -10 -10 -------- Run | Yrd Mat Sub Total Allies . | . . . Largest Group . | . . . Highest-Rated Group . | . . . Highest-Rated Ally . | . . . Total Orders . | . . . Ally Attacks . | . . . Total Damage . | . . . Kills . | . . . Allies Corrupted . | . . . Allies Melted . | . . . Intel | -11 -10 -10 ------- Run | Yrd Mat Sub Robot Analysis Total 1 | . 1 . Derelict Logs Recovered . | . . . Drone Launches . | . . . Drone Recoveries . | . . . Exploration | -11 -10 -10 ------------- Run | Yrd Mat Sub Turns Passed 1895 | 72 1072 751 Spaces Moved 807 | 46 363 398 Core 16 | 16 . . Treads 791 | 30 363 398 Legs . | . . . Wheels . | . . . Hover . | . . . Flight . | . . . Fastest Speed 50 | 50 160 160 Average Speed 157 | 121 160 160 Slowest Speed 160 | 160 160 160 Overloaded Moves . | . . . Propulsion Burnouts . | . . . Robots Hopped . | . . . Cave-ins Triggered . | . . . Exploration Rate (%) 32 | 3 66 27 Regions Visited 2 Branch Regions 1 Pre-discovered Areas 1 | . . 1 Known Exits Taken . | . . . Unknown Exits Taken 2 | 1 1 . Scrap Searched . | . . . Spaces Dug . | . . . Terrain Destroyed . | . . . Melee . | . . . Projectile . | . . . AOE . | . . . Terrain Rammed . | . . . Walls Destroyed . | . . . Machines Disabled . | . . . Actions | -11 -10 -10 --------- Run | Yrd Mat Sub Total 1331 | 60 811 460 Wait 425 | . 407 18 Move 805 | 45 362 398 Hop . | . . . Pick Up 21 | 8 9 4 Fast Attach 2 | . 1 1 Attach 9 | 6 . 3 Detach . | . . . Swap 5 | . 3 2 Drop 8 | . 4 4 Fire 56 | 1 25 30 Melee . | . . . Ram . | . . . Kick . | . . . Crush . | . . . Escape Stasis . | . . . Rewire . | . . . Trap . | . . . Miscellaneous . | . . . Route ------- -11/Scrapyard -10/Materials (discovered 4 exits: [*Mat x2] / [*Min] / *Sub) -10/Subcaves (discovered 1 exit: [*Mat]) History --------- Turn | Location | Event 3 | -11/Scrapyard | Discovered new exit (range 15) 73 | -11/Scrapyard | Entered Materials 302 | -10/Materials | Build established: Mutant 356 | -10/Materials | Discovered new exit (range 10) 488 | -10/Materials | Discovered new exit (range 15) 647 | -10/Materials | Discovered new exit (range 11) 1122 | -10/Materials | Discovered new exit (range 5) 1145 | -10/Materials | Entered Subcaves 1145 | -10/Subcaves | Discovered new exit (range 11) 1169 | -10/Subcaves | Visited Clippyterm 1174 | -10/Subcaves | Learned location of Section 7 (-3) 1174 | -10/Subcaves | Learned Factory stockpile data 1322 | -10/Subcaves | Shifting Twisted Machinery released Piercing Trap 1325 | -10/Subcaves | Shifting Twisted Machinery released Sub. Machine Gun 1872 | -10/Subcaves | Core integrity fell below 50% 1891 | -10/Subcaves | Core integrity fell below 20% 1896 | -10/Subcaves | Destroyed by 31-SUO(R) with Subdweller Beam Cannon Last Messages --------------- 01348_ ,9= 5CI,XFZA=CTYEK4/44W%J# 01372_ 3E-8BY(R) destroyed. 01374_ Acquired 43 matter. 01387_ 49-3MV(R) suffers critical hit (Burn). 01387_ 49-3MV(R) destroyed. 01392_ Acquired 41 matter. 01396_ BK-HDU(R) destroyed. 01402_ Acquired 23 matter. 01435_ System corrupted: Component data lost. 01473_ 73-NI4(R) destroyed. 01479_ Sub. Power Source melted. 01479_ X9-CNU(R) destroyed. 01482_ Acquired 10 matter. 01620_ System corrupted: Matter fused (-5). 01679_ System corrupted: Matter fused (-7). 01788_ System corrupted: Heat flow error (+185). 01888_ Lgt. Treads destroyed. 01890_ CO-DRW(R) destroyed. 01890_ Critical hit (Meltdown: +270). 01892_ Ion Engine destroyed. Map ----- +----------------------------------------------------+ | ????????????????????# ### ##???????????????? | | ###??????#####??????# ##??????????????? | | # ######## ######## # ##?????????????? | | # # # # #?????????????? | | # ## # ######?????????????? | | ######### ## #??????????????????? | | ????????## ### ####???????????????? | | ?????????### ### ####?# ##??????????????? | | ???????????# #### #??????????????? | | ???????????# #?## ##??????????????? | | ???????????# # ##?# ##??????????????? | | ???????????# ##### ### #??????????????? | | ???????????# #??# #??????????????? | | ???????????#### ##?### #??????????????? | | ?????????????####### # ###??????????????? | | ?????????????# ### #????????????????? | | ?????????????# #?## #???????????????? | | ????????????# ### # ##?## #???????????????? | | ????????????# ????#### ##??###???????????????? | | ?????????????????????# #????????????????????? | | ????????????????????## ###??????????????????? | | ???????????????????## " ##?????????????????? | | ???????????????????# " #?????????????????? | | ?????????????# # # #?????????????????? | | ?????????????"" ##?????????????????? | | ?????????????""" R @&!##?????????????????? | | ?????????????"" # ###%* #?????????????????? | | ?????????????"" # " ??#&&##?????????????????? | | ??????????????"" #??# #?????????????????? | | ??????????????"" ??# ##?????????????????? | | ???????????????" ### ?# #?????????????????? | | ???????????????" ?? #????????????????? | | ??????????????????## ## #????????????????? | | ???????????????????# #?# ##????????????????? | | ??????????????????? ?? ##?????????????????? | | ??????????????????# ??###??????????????????? | | ??????????????????## ????????????????????????? | | ???????????????????# ????????????????????????? | | ??????????????????? ?????????????????????????? | | ?????????????????? ?????????????????????????? | | ????????????????? ??????????????????????????? | | ??????????????????? ???????????????????????????? | | ???????????????????????????????????????????????? | | ???????????????????????????????????????????????? | | ???????????????????????????????????????????????? | | ???????????????????????????????????????????????? | | ???????????????????????????????????????????????? | | ???????????????????????????????????????????????? | | ???????????????????????????????????????????????? | | ???????????????????????????????????????????????? | +----------------------------------------------------+ Best States ------------- Heat Dissipation 25 Energy Generation 10 Energy Capacity 250 Matter Stores 300 Matter Capacity 300 Sight Range 16 Terrain Scan Density 10 Armor Coverage 150 Evasion (%) 50 Targeting Accuracy 5 Recoil Reduction 2 Item Schematics ----------------- None Robot Schematics ------------------ None Fabricated ------------ Nothing Alien Tech Used ----------------- None Achievements -------------- None Challenges ------------ None Game ------ Seed ActuatorBeamNanovents Manual? 0 Play Time 00:08:11 Cumulative 129.8 hours Start 2023.12.23 @ 13:50:45 End 2023.12.23 @ 13:56:44 Sessions 1 Manual Loads 0 Difficulty Rogue Special Mode None Game No. 145 Rogue 109 Adventurer 36 Explorer 0 Win Type - Total 8 Types 2/0/6/0/0/0/0/0/0 Lore% 54 Gallery% 76 Achievement% 62 Wizard Run 0 Options --------- ASCII 0 Keyboard 0 Movement Mouse Keybinds 0 Fullscreen 1 Font 18/SmallcapsGlow Map View 76x50 Zoom Use 0% Tactical HUD 1 Map Filters NONE Filters NONE Steam 1 RUN: 433a12aa-91a0-4472-9e2e-40cc880835e3